{"text_format":"2","workbook":"xlsx","n_sheets":1,"sheets":["Sheet1"],"not_rendered":{"charts":0,"images":0,"macros":0,"external_links":0,"defined_names":0,"comments":0,"pivot_tables":0},"unopened":[],"bounds":{"document_bytes":16777216,"sheet_cells":100000,"run_cost":"one","rows_first":2000,"rows_last":500,"rows_between":2000,"halvings":0,"cell_chars":16384,"cell_head_chars":4096},"cells_cut":0,"cells_raw":0,"read":"whole","date_system":"1900"}

{"sheet":"Sheet1","index":0,"n_rows":50,"n_cols":9,"rows_kept":50,"cut":false,"hidden":false,"merged":[[4,1,5,1],[4,2,5,2],[2,5,3,5],[4,5,5,5],[2,1,3,1],[6,1,7,1],[6,2,7,2],[6,3,7,3],[4,6,5,6],[6,6,7,6],[8,1,11,1],[8,2,11,2],[2,6,3,6],[8,6,11,6],[31,5,32,5],[31,6,32,6],[34,0,34,7],[31,2,32,2],[31,3,32,3],[35,2,36,2],[35,3,36,3],[35,4,36,4],[35,5,36,5],[35,6,36,6],[46,1,47,1],[46,2,47,2],[45,5,47,5],[46,6,47,6],[43,1,44,1],[43,2,44,2],[43,3,44,3],[43,5,44,5],[43,6,44,6],[45,4,47,4],[46,3,47,3],[2,7,3,7],[2,8,15,8],[17,8,20,8],[22,8,33,8],[35,8,40,8],[42,8,49,8],[48,7,49,7],[13,4,15,4],[13,5,15,5],[17,4,20,4],[19,2,20,2],[19,3,20,3],[2,0,15,0],[17,0,20,0],[22,0,33,0],[35,0,40,0],[42,0,49,0],[48,1,49,1],[48,2,49,2],[48,3,49,3],[1,0,1,7],[2,2,3,2],[2,3,3,3],[4,3,5,3],[6,4,7,4],[8,3,11,3],[16,0,16,7],[21,0,21,7],[22,1,23,1],[22,2,23,2],[22,3,23,3],[22,4,23,4],[22,6,23,6],[24,5,26,5],[24,4,26,4],[27,4,30,4],[29,1,30,1],[29,2,30,2],[29,3,30,3],[29,6,30,6],[31,1,32,1],[48,5,49,5],[48,6,49,6],[35,1,36,1],[38,1,39,1],[38,2,39,2],[38,3,39,3],[38,5,39,5],[38,6,39,6],[41,0,41,7]]}
["Q","CH","Standard","I Can Statement","Khan Academy","Math Antics",{"$f":"HYPERLINK(\"http://virtualnerd.com/common-core/grade-6/6_RP-ratios-proportional-relationships/A/1/problem-table-write-ratios\",\"Virtual Nerd\")","v":"Virtual Nerd"},"Don't Memorize!",{"$f":"HYPERLINK(\"https://www.mathgames.com/standards/grade6\",\"Math Games\")","v":"Math Games"}]
["The Number System"]
[1.0,2.0,"6.NS.1","I can divide fractions.",{"$f":"HYPERLINK(\"https://www.khanacademy.org/math/arithmetic/fraction-arithmetic/arith-review-dividing-fractions/v/conceptual-understanding-of-dividing-fractions-by-fractions\",\"Division of Fractions Playlist\")","v":"Division of Fractions Playlist"},{"$f":"HYPERLINK(\"http://www.mathantics.com/section/lesson-video/dividing-fractions\",\"Dividing Fractions\")","v":"Dividing Fractions"},{"$f":"HYPERLINK(\"http://virtualnerd.com/common-core/grade-6/6_NS-number-system/A/1/\",\"6.NS.1\")","v":"6.NS.1"},{"$f":"HYPERLINK(\"https://dontmemorise.com/course/view.php?id=26\",\"Operation of Fractions-Division (2 videos)\")","v":"Operation of Fractions-Division (2 videos)"},{"$f":"HYPERLINK(\"https://www.mathgames.com/standards/grade6\",\"Match Your Standard\")","v":"Match Your Standard"}]
[{"$nulls":4},{"$f":"HYPERLINK(\"https://www.khanacademy.org/math/arithmetic/fraction-arithmetic\",\"Fractions Personalized Study Plan\")","v":"Fractions Personalized Study Plan"}]
[null,1.0,"6.NS.2","I can divide using the U.S. standard algorithm.",{"$f":"HYPERLINK(\"https://www.khanacademy.org/e/division_3\",\"Divide by 2 Digits\")","v":"Divide by 2 Digits"},{"$f":"HYPERLINK(\"http://www.mathantics.com/section/lesson-video/long-division-with-2-digit-divisors\",\"Division\")","v":"Division"},{"$f":"HYPERLINK(\"http://virtualnerd.com/common-core/grade-6/6_NS-number-system/B/2/\",\"6.NS.2\")","v":"6.NS.2"},{"$f":"HYPERLINK(\"https://dontmemorise.com/course/view.php?id=10\",\"Divisibility Rules (4 videos)\")","v":"Divisibility Rules (4 videos)"}]
[{"$nulls":4},{"$f":"HYPERLINK(\"https://www.khanacademy.org/e/division_4\",\"Multi-Digit Division\")","v":"Multi-Digit Division"}]
[null,1.0,"6.NS.3","I can add, subtract, multiply, and divide decimals using standard algorithms.",{"$f":"HYPERLINK(\"https://www.khanacademy.org/math/arithmetic/arith-decimals\",\"Decimals Personalized Study Plan\")","v":"Decimals Personalized Study Plan"},{"$f":"HYPERLINK(\"http://www.mathantics.com/section/lesson-video/decimal-place-value\",\"Decimal Place Value\")","v":"Decimal Place Value"},{"$f":"HYPERLINK(\"http://virtualnerd.com/common-core/grade-6/6_NS-number-system/B/3/\",\"6.NS.3\")","v":"6.NS.3"},{"$f":"HYPERLINK(\"https://dontmemorise.com/course/view.php?id=27\",\"Addition and Subtraction (3 videos)\")","v":"Addition and Subtraction (3 videos)"}]
[{"$nulls":5},{"$f":"HYPERLINK(\"http://www.mathantics.com/section/lesson-video/decimal-arithmetic\",\"Decimal Arithmetic\")","v":"Decimal Arithmetic"}]
[null,1.0,"6.NS.4","I can use LCM, GCF, and the distributive property to make sense of problems.",{"$f":"HYPERLINK(\"https://www.khanacademy.org/e/greatest_common_divisor\",\"Greatest Common Factor\")","v":"Greatest Common Factor"},{"$f":"HYPERLINK(\"http://www.mathantics.com/section/lesson-video/common-denominator-ecd\",\"ECM\")","v":"ECM"},{"$f":"HYPERLINK(\"http://virtualnerd.com/common-core/grade-6/6_NS-number-system/B/4/\",\"6.NS.4\")","v":"6.NS.4"},{"$f":"HYPERLINK(\"https://www.youtube.com/watch?v=_3dWbRwW5v4\",\"upsidedown division\")","v":"upsidedown division"}]
[{"$nulls":4},{"$f":"HYPERLINK(\"https://www.khanacademy.org/e/least_common_multiple\",\"Least Common Multiple\")","v":"Least Common Multiple"},{"$f":"HYPERLINK(\"http://www.mathantics.com/section/lesson-video/common-denominator-lcd\",\"LCD\")","v":"LCD"},null,{"$f":"HYPERLINK(\"https://dontmemorise.com/course/view.php?id=24\",\"HCF-GCF-GCD (9 videos)\")","v":"HCF-GCF-GCD (9 videos)"}]
[{"$nulls":4},{"$f":"HYPERLINK(\"https://www.khanacademy.org/e/gcf-and-lcm-word-problems\",\"GCF and LCM Word Problems\")","v":"GCF and LCM Word Problems"},{"$f":"HYPERLINK(\"http://www.mathantics.com/section/lesson-video/distributive-property-in-arithmetic\",\"Distributive Property\")","v":"Distributive Property"},null,{"$f":"HYPERLINK(\"https://dontmemorise.com/course/view.php?id=24\",\"LCM (11 videos)\")","v":"LCM (11 videos)"}]
[{"$nulls":5},{"$f":"HYPERLINK(\"http://www.mathantics.com/section/lesson-video/prime-factorization\",\"Prime Factorization\")","v":"Prime Factorization"},null,{"$f":"HYPERLINK(\"https://dontmemorise.com/course/view.php?id=24\",\"HCF and LCM of 2 numbers (4 videos)\")","v":"HCF and LCM of 2 numbers (4 videos)"}]
[null,3.0,"6.NS.5","I can use positive and negative numbers to represent quantities and explain the meaning of 0 in each situation.",{"$f":"HYPERLINK(\"https://www.khanacademy.org/e/negative_number_word_problems\",\"Interpreting Negative Numbers\")","v":"Interpreting Negative Numbers"},{"$f":"HYPERLINK(\"http://www.mathantics.com/section/lesson-video/negative-numbers\",\"Negative Numbers\")","v":"Negative Numbers"},{"$f":"HYPERLINK(\"http://virtualnerd.com/common-core/grade-6/6_NS-number-system/C/5/\",\"6.NS.5\")","v":"6.NS.5"},{"$f":"HYPERLINK(\"https://dontmemorise.com/course/view.php?id=23\",\"Basics (2 videos)\")","v":"Basics (2 videos)"}]
[null,2.0,"6.NS.6","I can position rational numbers on number lines and coordinate grids.",{"$f":"HYPERLINK(\"https://www.khanacademy.org/math/cc-sixth-grade-math/cc-6th-negative-number-topic\",\"Negative Numbers Personalized Study Plan\")","v":"Negative Numbers Personalized Study Plan"},null,{"$f":"HYPERLINK(\"http://virtualnerd.com/common-core/grade-6/6_NS-number-system/C/6/\",\"6.NS.6\")","v":"6.NS.6"},{"$f":"HYPERLINK(\"https://dontmemorise.com/course/view.php?id=23\",\"Number Line (3 videos)\")","v":"Number Line (3 videos)"}]
[null,2.0,"6.NS.7","I can order rational numbers and the absolute value of rational numbers.",null,null,{"$f":"HYPERLINK(\"http://virtualnerd.com/common-core/grade-6/6_NS-number-system/C/7/\",\"6.NS.7\")","v":"6.NS.7"},{"$f":"HYPERLINK(\"https://dontmemorise.com/course/view.php?id=23\",\"Absolute Value (2 videos)\")","v":"Absolute Value (2 videos)"}]
[null,3.0,"6.NS.8","I can graph and find the distance between points on the coordinate grid.",null,null,{"$f":"HYPERLINK(\"http://virtualnerd.com/common-core/grade-6/6_NS-number-system/C/8/\",\"6.NS.8\")","v":"6.NS.8"},{"$f":"HYPERLINK(\"https://dontmemorise.com/course/view.php?id=62\",\"Coordinate Geometry (3 videos)\")","v":"Coordinate Geometry (3 videos)"}]
["Ratios and Proportional Relationships"]
[2.0,4.0,"6.RP.1","I can use ratio language to compare two different things.",{"$f":"HYPERLINK(\"https://www.khanacademy.org/math/cc-sixth-grade-math/cc-6th-ratios-prop-topic\",\"Ratios, Rates, and Percentages: Personalized Study Plan\")","v":"Ratios, Rates, and Percentages: Personalized Study Plan"},{"$f":"HYPERLINK(\"http://www.mathantics.com/section/lesson-video/ratios-and-rates\",\"Ratio and Rates\")","v":"Ratio and Rates"},{"$f":"HYPERLINK(\"http://virtualnerd.com/common-core/grade-6/6_RP-ratios-proportional-relationships/A/1/\",\"6.RP.1\")","v":"6.RP.1"},{"$f":"HYPERLINK(\"https://dontmemorise.com/course/view.php?id=28\",\"Basics (5 videos) and Types (1 video)\")","v":"Basics (5 videos) and Types (1 video)"},{"$f":"HYPERLINK(\"https://www.mathgames.com/standards/grade6\",\"Match Your Standard\")","v":"Match Your Standard"}]
[null,4.0,"6.RP.2","I can use unit rate to compare ratios.",null,{"$f":"HYPERLINK(\"http://www.mathantics.com/section/lesson-video/proportions\",\"Proportions\")","v":"Proportions"},{"$f":"HYPERLINK(\"http://virtualnerd.com/common-core/grade-6/6_RP-ratios-proportional-relationships/A/2/rate-and-unit-rates-definition\",\"6.RP.2\")","v":"6.RP.2"},{"$f":"HYPERLINK(\"https://dontmemorise.com/course/view.php?id=29\",\"Proportion (4 videos)\")","v":"Proportion (4 videos)"}]
[null,5.0,"6.RP.3","I can use equivalent ratios to compare ratios and convert measurements and use percents to solve real-world problems.",null,null,{"$f":"HYPERLINK(\"http://virtualnerd.com/common-core/grade-6/6_RP-ratios-proportional-relationships/A/3/\",\"6.RP.3\")","v":"6.RP.3"},{"$f":"HYPERLINK(\"https://dontmemorise.com/course/view.php?id=28\",\"Comparison of Ratios (3 videos)\")","v":"Comparison of Ratios (3 videos)"}]
[null,6.0,null,null,null,{"$f":"HYPERLINK(\"http://www.mathantics.com/\",\"Click on the Percents Tab (multiple videos)\")","v":"Click on the Percents Tab (multiple videos)"},{"$f":"HYPERLINK(\"http://virtualnerd.com/common-core/grade-6/6_RP-ratios-proportional-relationships/A/3/3c/\",\"6.RP.3c\")","v":"6.RP.3c"},{"$f":"HYPERLINK(\"https://dontmemorise.com/course/view.php?id=63\",\"Percentage (5 videos)\")","v":"Percentage (5 videos)"}]
["Expressions and Equations"]
[3.0,7.0,"6.EE.1","I can use exponents when making sense of problems.",{"$f":"HYPERLINK(\"https://www.khanacademy.org/math/pre-algebra/pre-algebra-exponents-radicals/pre-algebra-exponents/v/exponents-warmup\",\"Exponents Playlist\")","v":"Exponents Playlist"},{"$f":"HYPERLINK(\"http://www.mathantics.com/section/lesson-video/intro-to-exponents\",\"Intro to Exponents\")","v":"Intro to Exponents"},{"$f":"HYPERLINK(\"http://virtualnerd.com/common-core/grade-6/6_EE-expression-equations/A/1/\",\"6.EE.1\")","v":"6.EE.1"},{"$f":"HYPERLINK(\"https://www.youtube.com/watch?v=WwHyPoqUQec&list=PLmdFyQYShrjdt-k5SisnnaHZH3XbZDVOY&t=0s&index=2\",\"What are Exponents?\")","v":"What are Exponents?"},{"$f":"HYPERLINK(\"https://www.mathgames.com/standards/grade6\",\"Match Your Standard\")","v":"Match Your Standard"}]
[{"$nulls":5},{"$f":"HYPERLINK(\"http://www.mathantics.com/section/lesson-video/exponents-in-algebra\",\"Exponents in Algebra\")","v":"Exponents in Algebra"},null,{"$f":"HYPERLINK(\"https://www.youtube.com/watch?v=JXmASAciIog&list=PLmdFyQYShrjdt-k5SisnnaHZH3XbZDVOY&t=0s&index=3\",\"Properties of Exponents\")","v":"Properties of Exponents"}]
[null,7.0,"6.EE.2","I can read, write, and evaluate algebraic expressions.",{"$f":"HYPERLINK(\"https://www.khanacademy.org/math/algebra-basics/alg-basics-algebraic-expressions\",\"Algebraic Expressions Personalized Study Plan\")","v":"Algebraic Expressions Personalized Study Plan"},{"$f":"HYPERLINK(\"http://www.mathantics.com/section/lesson-video/what-is-algebra\",\"What is Algebra\")","v":"What is Algebra"},{"$f":"HYPERLINK(\"http://virtualnerd.com/common-core/grade-6/6_EE-expression-equations/A/2/\",\"6.EE.2\")","v":"6.EE.2"},{"$f":"HYPERLINK(\"https://dontmemorise.com/course/view.php?id=46\",\"Basics (2 videos) and Terms (5 videos)\")","v":"Basics (2 videos) and Terms (5 videos)"}]
[null,7.0,"6.EE.3","I can use the properties of operations to generate equivalent expressions.",null,null,{"$f":"HYPERLINK(\"http://virtualnerd.com/common-core/grade-6/6_EE-expression-equations/A/3/\",\"6.EE.3\")","v":"6.EE.3"}]
[null,5.0,"6.EE.4","I can identify when two algebraic expressions are equivalent."]
[null,8.0,"6.EE.5","I can use substitution to solve an equation or an inequality.",{"$f":"HYPERLINK(\"https://www.khanacademy.org/math/algebra/one-variable-linear-equations\",\"Solving Equations Personalized Study Plan\")","v":"Solving Equations Personalized Study Plan"},null,{"$f":"HYPERLINK(\"http://virtualnerd.com/common-core/grade-6/6_EE-expression-equations/B/5/\",\"6.EE.5\")","v":"6.EE.5"},{"$f":"HYPERLINK(\"https://dontmemorise.com/course/view.php?id=45\",\"Basics (1 video)\")","v":"Basics (1 video)"}]
[null,7.0,"6.EE.6","I can write algebraic expressions when solving problems.",null,null,{"$f":"HYPERLINK(\"http://virtualnerd.com/common-core/grade-6/6_EE-expression-equations/B/6/\",\"6.EE.6\")","v":"6.EE.6"}]
[null,8.0,"6.EE.7","I can solve problems by writing and solving equations of the form × + p = q and px = q.",null,{"$f":"HYPERLINK(\"http://www.mathantics.com/section/lesson-video/solving-basic-equations-1\",\"Solving Basic Equations Part I\")","v":"Solving Basic Equations Part I"},{"$f":"HYPERLINK(\"http://virtualnerd.com/common-core/grade-6/6_EE-expression-equations/B/7/\",\"6.EE.7\")","v":"6.EE.7"},{"$f":"HYPERLINK(\"https://dontmemorise.com/course/view.php?id=46\",\"Addition and Subtraction (9 videos)\")","v":"Addition and Subtraction (9 videos)"}]
[{"$nulls":5},{"$f":"HYPERLINK(\"http://www.mathantics.com/section/lesson-video/solving-basic-equations-2\",\"Solving Basic Equations Part II\")","v":"Solving Basic Equations Part II"},null,{"$f":"HYPERLINK(\"https://dontmemorise.com/course/view.php?id=51\",\"Linear Equations (4 videos)\")","v":"Linear Equations (4 videos)"}]
[null,8.0,"6.EE.8","I can write an inequality of the form × > c or × < c and represent them on a number line.",{"$f":"HYPERLINK(\"https://www.khanacademy.org/math/algebra/one-variable-linear-inequalities/alg1-inequalities/v/testing-solutions-to-inequalities\",\"Inequalities Playlist\")","v":"Inequalities Playlist"},null,{"$f":"HYPERLINK(\"http://virtualnerd.com/common-core/grade-6/6_EE-expression-equations/B/8/\",\"6.EE.8\")","v":"6.EE.8"}]
[{"$nulls":4},{"$f":"HYPERLINK(\"https://www.khanacademy.org/math/algebra/one-variable-linear-inequalities\",\"Solving Inequalities Personalized Study Plan\")","v":"Solving Inequalities Personalized Study Plan"}]
[null,9.0,"6.EE.9","I can analyze the relationship between the dependent and independent variables using graphs and tables, and relate these to the equation.",{"$f":"HYPERLINK(\"https://www.khanacademy.org/math/algebra/introduction-to-algebra/alg1-dependent-independent/v/dependent-and-independent-variables-exercise-example-1\",\"Dependent and Independent Variables Playlist\")","v":"Dependent and Independent Variables Playlist"},{"$f":"HYPERLINK(\"http://www.mathantics.com/section/lesson-video/graphing-on-the-coordinate-plane\",\"Graphing on the Coordinate Plane\")","v":"Graphing on the Coordinate Plane"},{"$f":"HYPERLINK(\"http://virtualnerd.com/common-core/grade-6/6_EE-expression-equations/C/9/\",\"6.EE.9\")","v":"6.EE.9"}]
["Geometry"]
[4.0,10.0,"6.G.1","I can find the area of polygons by composing and decomposing the shapes into triangles and quadrilaterals.",{"$f":"HYPERLINK(\"https://www.khanacademy.org/math/basic-geo/basic-geo-area-and-perimeter\",\"Area and Perimeter Personalized Study Plan\")","v":"Area and Perimeter Personalized Study Plan"},{"$f":"HYPERLINK(\"http://www.mathantics.com/section/lesson-video/area\",\"Area\")","v":"Area"},{"$f":"HYPERLINK(\"http://virtualnerd.com/common-core/grade-6/6_G-geometry/A/1/\",\"6.G.1\")","v":"6.G.1"},{"$f":"HYPERLINK(\"https://dontmemorise.com/course/view.php?id=37\",\"Basics (3 videos) and Area of a Triangle (2 videos)\")","v":"Basics (3 videos) and Area of a Triangle (2 videos)"},{"$f":"HYPERLINK(\"https://www.mathgames.com/standards/grade6\",\"Match Your Standard\")","v":"Match Your Standard"}]
[{"$nulls":7},{"$f":"HYPERLINK(\"https://dontmemorise.com/course/view.php?id=61\",\"Basics (2 videos)\")","v":"Basics (2 videos)"}]
[null,11.0,"6.G.2","I can find the volume of a right rectangular prism with fractional edge lengths by packing it with unit cubes and show that the volume is the same as would be found by multiplying the edge lengths of the prism using the formula V = lwh.",{"$f":"HYPERLINK(\"https://www.khanacademy.org/math/basic-geo/basic-geo-volume-sa/volume-rect-prism/v/how-we-measure-volume\",\"Volume Playlist\")","v":"Volume Playlist"},{"$f":"HYPERLINK(\"http://www.mathantics.com/section/lesson-video/volume\",\"Volume\")","v":"Volume"},{"$f":"HYPERLINK(\"http://virtualnerd.com/common-core/grade-6/6_G-geometry/A/2/\",\"6.G.2\")","v":"6.G.2"},{"$f":"HYPERLINK(\"https://dontmemorise.com/course/view.php?id=60\",\"Basics (1 video) and Cuboids and Cubes (6 videos)\")","v":"Basics (1 video) and Cuboids and Cubes (6 videos)"}]
[null,10.0,"6.G.3","I can draw polygons in the coordinate plane given coordinates for the vertices.",{"$f":"HYPERLINK(\"https://www.khanacademy.org/math/basic-geo/basic-geo-coord-plane/polygons-in-the-coordinate-plane/v/constructing-polygon-on-coordinate-plane-example\",\"Drawing Quadrilaterals on the Coordinate Plane Playlist\")","v":"Drawing Quadrilaterals on the Coordinate Plane Playlist"},{"$f":"HYPERLINK(\"http://www.mathantics.com/section/lesson-video/points-lines-planes\",\"Points, Lines, and Planes\")","v":"Points, Lines, and Planes"},{"$f":"HYPERLINK(\"http://virtualnerd.com/common-core/grade-6/6_G-geometry/A/3/\",\"6.G.3\")","v":"6.G.3"}]
[{"$nulls":4},{"$f":"HYPERLINK(\"https://www.khanacademy.org/math/basic-geo/basic-geo-coord-plane\",\"Coordinate Plane Personalized Study Plan\")","v":"Coordinate Plane Personalized Study Plan"},null,null,{"$f":"HYPERLINK(\"https://dontmemorise.com/course/view.php?id=46\",\"Graphs (6 videos)\")","v":"Graphs (6 videos)"}]
[null,11.0,"6.G.4","I can use nets to find the surface area of three-dimensional figures.",{"$f":"HYPERLINK(\"https://www.khanacademy.org/math/basic-geo/basic-geo-volume-sa/basic-geometry-surface-area/v/nets-of-polyhedra\",\"Nets and Surface Area Playlist\")","v":"Nets and Surface Area Playlist"},{"$f":"HYPERLINK(\"http://www.mathantics.com/section/lesson-video/area\",\"Area\")","v":"Area"},{"$f":"HYPERLINK(\"http://virtualnerd.com/common-core/grade-6/6_G-geometry/A/4/\",\"6.G.4\")","v":"6.G.4"},{"$f":"HYPERLINK(\"https://dontmemorise.com/course/view.php?id=56\",\"Three Dimensional Shapes (12 videos)\")","v":"Three Dimensional Shapes (12 videos)"}]
["Statistics and Probability"]
[4.0,12.0,"6.SP.1","I can recognize and write statistical questions.",{"$f":"HYPERLINK(\"https://www.khanacademy.org/e/statistical-questions\",\"Statistical Questions\")","v":"Statistical Questions"},null,null,{"$f":"HYPERLINK(\"https://dontmemorise.com/course/view.php?id=42\",\"Basics (4 videos)\")","v":"Basics (4 videos)"},{"$f":"HYPERLINK(\"https://www.mathgames.com/standards/grade6\",\"Match Your Standard\")","v":"Match Your Standard"}]
[null,12.0,"6.SP.2","I can understand that data collected from a statistical question has a distribution which can be described by its center, spread, and overall shape.",{"$f":"HYPERLINK(\"https://www.khanacademy.org/math/cc-sixth-grade-math/cc-6th-data-statistics/cc-6-shape-of-data/v/shapes-of-distributions\",\"Shapes of Distribution Playlist\")","v":"Shapes of Distribution Playlist"},null,null,{"$f":"HYPERLINK(\"https://dontmemorise.com/course/view.php?id=42\",\"Frequency Distribution (3 videos)\")","v":"Frequency Distribution (3 videos)"}]
[{"$nulls":4},{"$f":"HYPERLINK(\"https://www.khanacademy.org/math/ap-statistics/quantitative-data-ap\",\"Displaying and Comparing Quantitative Data Personalized Study Plan\")","v":"Displaying and Comparing Quantitative Data Personalized Study Plan"}]
[null,12.0,"6.SP.3","I understand the difference between measures of center and measures of variation.",{"$f":"HYPERLINK(\"https://www.khanacademy.org/math/pre-algebra/pre-algebra-math-reasoning\",\"Reading and Interpreting Data Personalized Study Plan\")","v":"Reading and Interpreting Data Personalized Study Plan"}]
[null,12.0,"6.SP.4","I can display data in plots on a number line, including dot plots, histograms, and box plots.",null,null,{"$f":"HYPERLINK(\"http://virtualnerd.com/common-core/grade-6/6_SP-statistics-probability/B/4/\",\"6.SP.4\")","v":"6.SP.4"},{"$f":"HYPERLINK(\"https://dontmemorise.com/course/view.php?id=41\",\"Scale of a Graph (4 videos)\")","v":"Scale of a Graph (4 videos)"}]
[{"$nulls":7},{"$f":"HYPERLINK(\"https://dontmemorise.com/course/view.php?id=42\",\"Histogram (2 videos)\")","v":"Histogram (2 videos)"}]
[null,13.0,"6.SP.5","I can summarize data sets using measures of center and measures of variation.",{"$f":"HYPERLINK(\"https://www.khanacademy.org/math/probability/data-distributions-a1/summarizing-center-distributions/v/statistics-intro-mean-median-and-mode\",\"Statistics Intro: Mean, Median, and Mode Playlist\")","v":"Statistics Intro: Mean, Median, and Mode Playlist"},{"$f":"HYPERLINK(\"http://www.mathantics.com/section/lesson-video/mean-median-and-mode\",\"Mean, Median, and Mode\")","v":"Mean, Median, and Mode"},{"$f":"HYPERLINK(\"http://virtualnerd.com/common-core/grade-6/6_SP-statistics-probability/B/5/\",\"6.SP.5\")","v":"6.SP.5"},{"$f":"HYPERLINK(\"https://dontmemorise.com/course/view.php?id=42\",\"Mean, Median, and Mode (13 videos)\")","v":"Mean, Median, and Mode (13 videos)"}]
[{"$nulls":4},{"$f":"HYPERLINK(\"https://www.khanacademy.org/math/ap-statistics/summarizing-quantitative-data-ap\",\"Summarizing Quantitative Data Personalized Study Plan\")","v":"Summarizing Quantitative Data Personalized Study Plan"}]